Cogmind - Beta 14 @@@ ROGUE MODE // 2025.03.29 @ 16:17:09 Player: SirusTheMadDJ Result: Destroyed by S-10 Pest with Light Assault Rifle Performance ------------- Evolutions (0) 0 Regions Visited (2) 400 Robots Destroyed (24) 120 Value Destroyed (545) 545 Prototype IDs (0) 0 Alien Tech Used (0) 0 Bonus (0) 0 TOTAL SCORE: 1065 Bonus ------- None Cogmind --------- Core Integrity 0/250 Matter 292/300 Energy 160/160 System Corruption 0% Temperature Warm (100) Movement Treading (160) Location -10/Mines Parts ------- > --- POWER (1) -------- Light Nuclear Core > --- PROPULSION (2) --- Light Treads > --- UTILITY (2) ------ Medium Storage Unit Visual Processing Unit > --- WEAPON (2) ------- Medium Laser Light Assault Rifle > --- INVENTORY (10) --- Ion Engine Flight Unit Flight Unit Weight Redist. System Signal Interpreter Grenade Launcher Grenade Launcher Datajack Mining Claw Peak State ------------ > --- POWER ------------ Light Nuclear Core > --- PROPULSION ------- Aluminum Leg Aluminum Leg > --- UTILITY ---------- Small Storage Unit Visual Processing Unit > --- WEAPON ----------- Light Assault Rifle Light Assault Rifle > --- INVENTORY -------- Grenade Launcher Grenade Launcher [Rating: 10] Favorites ----------- Power Light Nuclear Core Engine Ion Engine Power Core Light Nuclear Core Propulsion Aluminum Leg Treads Light Treads Leg Aluminum Leg Flight Unit Flight Unit Utility Visual Processing Unit Storage Medium Storage Unit Processor Visual Processing Unit Weapon Light Assault Rifle Energy Gun Medium Laser Ballistic Gun Light Assault Rifle Launcher Grenade Launcher Build | -11 -10 -10 ------- Run | Yrd Mat Min Slots Evolved . | . . . Power . | . . . Propulsion . | . . . Utility . | . . . Weapon . | . . . Parts Attached 19 | 6 13 . Power 3 | 1 2 . Engine 1 | 1 . . Core 2 | . 2 . Reactor . | . . . Propulsion 7 | 2 5 . Treads 2 | . 2 . Leg 3 | 2 1 . Wheel . | . . . Hover . | . . . Flight 2 | . 2 . Utility 3 | 1 2 . Device . | . . . Storage 2 | 1 1 . Processor 1 | . 1 . Hackware . | . . . Protection . | . . . Artifact . | . . . Weapon 6 | 2 4 . Energy Gun 2 | . 2 . Energy Cannon . | . . . Ballistic Gun 3 | 2 1 . Ballistic Cannon . | . . . Launcher 1 | . 1 . Special Weapon . | . . . Impact Weapon . | . . . Slashing Weapon . | . . . Piercing Weapon . | . . . Special Melee Weapon . | . . . Unidentified Prototypes . | . . . Parts Lost 4 | . 4 . Power . | . . . Propulsion 2 | . 2 . Utility . | . . . Weapon 2 | . 2 . Highest Loss Streak 1 | . 1 . To Critical Strikes . | . . . Average Slot Usage (%) 85 | . 85 85 Engine 2 | . 2 . Core 11 | . 11 14 Treads 7 | . 6 14 Leg 10 | . 11 . Storage 14 | . 14 14 Processor 10 | . 10 14 Energy Gun 5 | . 4 14 Ballistic Gun 20 | . 21 14 Peak Build Rating 10 | 6 10 10 Average Rating 8 | 4 8 10 On Entrance 5 | . 6 10 Naked Turns . | . . . Heaviest Build 18 | 13 18 18 Greatest Support 20 | 20 20 20 Greatest Overweight (x) 5 | . 5 . Average Overweight (x) . | . . . Largest Inventory Capacity 10 | 8 10 10 Average Capacity 9 | 6 9 10 Most Carried 9 | . 9 9 Average Carried 5 | . 5 9 Final Capacity 10 | 8 10 10 Final Carried 9 | . 9 9 Class Distribution -------------------- 97% | Mutant Dominant Class ---------------- Mutant | -10/Materials Mutant | -10/Mines Resources | -11 -10 -10 ----------- Run | Yrd Mat Min Matter Collected 673 | 271 402 . Remotely . | . . . Salvage Created 814 | 53 748 13 Parts 46 | 1 43 2 Haulers Intercepted 2 | . 2 . Recyclers Shooed 2 | . 2 . Parts Field Recycled . | . . . Retrieved Matter . | . . . Parts Self-Destructed . | . . . Prevented . | . . . Kills | -11 -10 -10 ------- Run | Yrd Mat Min Combat Hostiles Destroyed 15 | . 14 1 Guns 14 | . 13 1 AOE 1 | . 1 . Classes Destroyed 8 | 1 7 . Builder 1 | . 1 . Hauler 2 | . 2 . Recycler 2 | 1 1 . Mechanic 1 | . 1 . Operator 1 | . 1 . Watcher 2 | . 2 . Swarmer 4 | . 3 1 Grunt 11 | . 11 . Best Kill Streak 4 | 1 4 1 Combat Bots Only 3 | . 3 1 Max Kills in Single Turn 2 | 1 2 1 Gunslinging . | . . . Exploded 1 | . 1 . Melee . | . . . Uniques/NPCs Destroyed . | . . . Combat | -11 -10 -10 -------- Run | Yrd Mat Min Hostile Shots Fired 140 | . 108 32 Missed 44 | . 30 14 Damage Taken 979 | . 854 125 Core 253 | . 211 42 Absorbed by Shields . | . . . Core Remaining (%) 100 | 100 . . Volleys Fired 128 | 3 117 8 Largest 2 | 2 2 2 Hottest 70 | 40 70 70 Shots Fired 231 | 6 209 16 Gun 229 | 6 207 16 Cannon . | . . . Launcher 2 | . 2 . Special . | . . . Kinetic 216 | 6 202 8 Thermal 13 | . 5 8 Explosive 2 | . 2 . Electromagnetic . | . . . Robot Hit Streak 10 | 3 10 2 Robot Miss Streak 8 | 2 8 7 Penetration Max . | . . . Secondary Targets 1 | . 1 . Max Gunslinging Chain 1 | . 1 . Shots Hit Robots 121 | 4 115 2 Core Hits 56 | 2 53 1 Critical Kills . | . . . Critical Parts Destroyed 2 | . 2 . Critical Strikes 2 | . 2 . Destroy 2 | . 2 . Melee Attacks . | . . . Impact . | . . . Slashing . | . . . Piercing . | . . . Sneak Attacks . | . . . Combat Hostiles . | . . . Follow-up Attacks . | . . . Damage Inflicted 1232 | 44 1169 19 Guns 1115 | 44 1052 19 Cannons . | . . . Explosions 115 | . 115 . Melee . | . . . Ramming 2 | . 2 . Kinetic 1079 | 44 1028 7 Thermal 36 | . 24 12 Explosive 115 | . 115 . Electromagnetic . | . . . Impact . | . . . Slashing . | . . . Piercing . | . . . Highest Corruption . | . . . Average Corruption . | . . . Corruption Purged . | . . . Corruption Blocked . | . . . Overload Shots . | . . . Overflow Damage . | . . . Projectiles . | . . . Explosions . | . . . Melee . | . . . Knockbacks . | . . . Impact . | . . . Kinetic . | . . . Secondary . | . . . Self-Inflicted Damage . | . . . Shots . | . . . Rammed . | . . . Targets Rammed 3 | . 3 . Kicked 3 | . 3 . Crushed . | . . . Highest Temperature 100 | . 82 100 Average Temperature 14 | . 9 47 Received Heat Transfer 438 | . 438 . Siege Activations . | . . . Robots Corrupted . | . . . Combat Hostiles . | . . . Parts Fried . | . . . Impact Corruptions . | . . . Robots Melted . | . . . Combat Hostiles . | . . . Parts Melted . | . . . Heat Transferred 111 | . 74 37 Parts Sabotaged . | . . . Parts Stolen . | . . . Parts Stripped . | . . . Power Chain Reactions . | . . . Alert | -11 -10 -10 ------- Run | Yrd Mat Min Peak Influence 302 | 5 302 39 Initial 9 | . 3 9 Average 75 | 2 85 10 Maximum Alert Level 1 | . 1 . Low Security (%) 89 | 100 87 100 Level 1 10 | . 12 . Level 2 . | . . . Level 3 . | . . . Level 4 . | . . . Level 5 . | . . . High Security . | . . . Max Security . | . . . Squads Dispatched 3 | . 3 . Investigation 2 | . 2 . Extermination . | . . . Reinforcement 1 | . 1 . Assault . | . . . Garrison . | . . . Intercept . | . . . Searches Triggered . | . . . Construction Impeded . | . . . Haulers Reinforced . | . . . Active Scanning Responses . | . . . Cargo Convoy Interrupts . | . . . Stealth | -11 -10 -10 --------- Run | Yrd Mat Min Distress Signals 3 | . 3 . Communications Jammed . | . . . Distress Signals . | . . . Times Spotted 40 | . 37 3 Peak Tracking Total 6 | . 6 3 Tactical Retreats 1 | . 1 . Traps | -11 -10 -10 ------- Run | Yrd Mat Min Traps Triggered 1 | . 1 . Indirectly . | . . . Trap Hack Attempts . | . . . Triggered . | . . . Disarmed . | . . . Reprogrammed . | . . . Reused . | . . . Traps Extracted . | . . . Installed . | . . . Triggered . | . . . Machines | -11 -10 -10 ---------- Run | Yrd Mat Min Machines Disabled 1 | . 1 . Max in Single Turn 1 | . 1 . Machines Repaired . | . . . Machines Dismantled . | . . . Machines Sabotaged . | . . . Overloaded Fab Kills . | . . . Hacking | -11 -10 -10 --------- Run | Yrd Mat Min Machines Accessed 5 | . 5 . Terminals 5 | . 5 . Fabricators . | . . . Repair Stations . | . . . Recycling Units . | . . . Scanalyzers . | . . . Garrison Access . | . . . Total Hacks 11 | . 11 . Successful 3 | . 3 . Failed 8 | . 8 . Catastrophic 1 | . 1 . Database Lockouts . | . . . Manual 5 | . 5 . Terminals 11 | . 11 . Fabricators . | . . . Repair Stations . | . . . Recycling Units . | . . . Scanalyzers . | . . . Garrison Access . | . . . Terminal Hacks 3 | . 3 . Robot Analysis 1 | . 1 . Unreport Threat 1 | . 1 . Zone Layout 1 | . 1 . Fabricator Hacks . | . . . Repair Station Hacks . | . . . Recycling Unit Hacks . | . . . Scanalyzer . | . . . Garrison Access Hacks . | . . . Unauthorized Hacks . | . . . Terminals . | . . . Fabricators . | . . . Repair Stations . | . . . Recycling Units . | . . . Scanalyzers . | . . . Garrison Access . | . . . Data Cores Recovered . | . . . Used . | . . . Hacking Detections 4 | . 4 . Full Trace Events 2 | . 2 . Feedback Events . | . . . Feedback Blocked . | . . . Robot Schematics Acquired . | . . . Robots Built . | . . . Authchips . | . . . Time . | . . . Total Robot Build Rating . | . . . Part Schematics Acquired . | . . . Parts Built . | . . . Authchips . | . . . Time . | . . . Total Part Build Rating . | . . . Parts Repaired . | . . . Time . | . . . Parts Recycled . | . . . Recycled Matter . | . . . Retrieved Matter . | . . . Retrieved Components . | . . . Parts Scanalyzed . | . . . Part Schematics Acquired . | . . . Parts Damaged . | . . . Bothacking | -11 -10 -10 ------------ Run | Yrd Mat Min Used RIF Installer . | . . . Robots Hacked . | . . . Non-combat . | . . . Combat . | . . . Robot Hacks Applied . | . . . Relay Couplers Released . | . . . Fabnet Peak Effective % . | . . . Robots Rewired . | . . . Allies Hacked . | . . . Hacks Repelled . | . . . Allies | -11 -10 -10 -------- Run | Yrd Mat Min Total Allies . | . . . Largest Group . | . . . Highest-Rated Group . | . . . Highest-Rated Ally . | . . . Total Orders . | . . . Ally Attacks . | . . . Total Damage . | . . . Kills . | . . . Allies Corrupted . | . . . Allies Melted . | . . . Intel | -11 -10 -10 ------- Run | Yrd Mat Min Robot Analysis Total 1 | . 1 . Derelict Logs Recovered . | . . . Drone Launches . | . . . Drone Recoveries . | . . . Exploration | -11 -10 -10 ------------- Run | Yrd Mat Min Turns Passed 1745 | 56 1516 173 Spaces Moved 882 | 34 763 85 Core 12 | 2 10 . Treads 514 | . 429 85 Legs 339 | 32 307 . Wheels . | . . . Hover . | . . . Flight 17 | . 17 . Fastest Speed 50 | 50 120 160 Average Speed 150 | 115 151 160 Slowest Speed 360 | 120 360 160 Overloaded Moves . | . . . Propulsion Burnouts . | . . . Robots Hopped . | . . . Cave-ins Triggered . | . . . Exploration Rate (%) 39 | 3 97 19 Regions Visited 2 Branch Regions 1 Pre-discovered Areas . | . . . Known Exits Taken . | . . . Unknown Exits Taken 2 | 1 1 . Scrap Searched . | . . . Spaces Dug . | . . . Terrain Destroyed 9 | . 9 . Melee . | . . . Projectile . | . . . AOE 9 | . 9 . Terrain Rammed . | . . . Walls Destroyed . | . . . Machines Disabled . | . . . Actions | -11 -10 -10 --------- Run | Yrd Mat Min Total 1097 | 42 947 108 Wait 54 | . 39 15 Move 880 | 33 762 85 Hop . | . . . Pick Up 8 | . 8 . Fast Attach 14 | 6 8 . Attach 1 | . 1 . Detach 2 | . 2 . Swap 4 | . 4 . Drop 3 | . 3 . Fire 128 | 3 117 8 Melee . | . . . Ram . | . . . Kick 3 | . 3 . Crush . | . . . Escape Stasis . | . . . Rewire . | . . . Trap . | . . . Miscellaneous . | . . . Route ------- -11/Scrapyard -10/Materials (discovered 6 exits: [*Mat x3] / [*Min x2] / [*Sub]) -10/Mines History --------- Turn | Location | Event 7 | -11/Scrapyard | Discovered new exit (range 15) 57 | -11/Scrapyard | Entered Materials 305 | -10/Materials | Build established: Mutant 377 | -10/Materials | Core integrity fell below 50% 459 | -10/Materials | Discovered new exit (range 6) 477 | -10/Materials | Discovered new exit (range 18) 606 | -10/Materials | Discovered new exit (range 9) 827 | -10/Materials | Discovered new exit (range 7) 854 | -10/Materials | Core integrity fell below 20% 1351 | -10/Materials | Discovered new exit (range 8) 1511 | -10/Materials | Discovered new exit (range 6) 1573 | -10/Materials | Entered Mines 1746 | -10/Mines | Destroyed by S-10 Pest with Light Assault Rifle Last Messages --------------- >>Layout(Zone) Retrieving Zone 5F layout... Downloaded map data. EXIT=FOUND K-01 Serf cleans the Terminal. LOCATION=UNKNOWN GOAL=ESCAPE Something is scanning the area. A derelict is hurriedly installing traps. UZ-KEG(g): "Hehe, this'll put a wrench in their mining defense operations..." UZ-KEG(g) slips into the shadows. K-01 Serf collects debris. T-07 Excavator is excavating. K-01 Serf cleans the Plasma Injector. S-10 Pest destroyed. K-01 Serf collects debris. S-10 Pest destroyed. K-01 Serf collects debris. R-06 Scavenger collects Flight Unit. Map ----- +----------------------------------------------------+ | ?????????????????????????????????????????????????? | | ?????????????????????????????????????????????????? | | ?????????????????????????????????????????????????? | | ?????????????????????????????????????????????????? | | ??????????????????##?????????????????????????????? | | ?????????????????? ?????????????????????????????? | | ??????????????????? ??#?????????????????????????? | | ??????????????????? ## ?????????????????????????? | | ???????????????????? # ?????????????????????????? | | ???????????????????? k ?????????????????????????? | | ?????????????????????t ?????????????????????????? | | ????????????????????? =r?????????????????????????? | | ?????????????????????#% ?????????????????????????? | | ?????????????????????#[ ?????????????????????????? | | ?????????? ????????##% ##???????????????????????? | | ????????? #??????# r #???????????????????????? | | ????????? ????##k #???????????????????????? | | ????????? #### ##??????????????????????? | | ?????????????# #??????????????????????? | | ?????????????# #??????????????????????? | | ????????????????### ##?????????????????????? | | ??????????????????### #?????????????????????? | | ????????????????????## #?????????????????????? | | ?????????????????????## ##?????????????????????? | | ??????????????????????###s#??????????????????????? | | ???????????????????######@######?????????????????? | | ???????????????????# #?????????????????? | | ???????????????????# """ """ #?????????????????? | | ???????????????????# """ """ #?????????????????? | | ??????###????####### """ """ #?????????????????? | | ??????# ????# #?????????????????? | | ??????# #????# ##### """ """ #?????????????????? | | ??????# #????# #???# """ """ #?????????????????? | | ??????# #????# #???# """ """ #?????????????????? | | ??????# #????# #???# #?????????????????? | | ??????# #????# #???# """ """ #?????????????????? | | ?????## #????# #???# """ """ #?????????????????? | | ????## ##???# #???# """ """ #?????????????????? | | ?#### ##??# #???# #?????????????????? | | ?# ^ ^ #### #???### ########?????????????????? | | ?# ## # ## ##????# #????????????????????????? | | ?# # #????####????????????????????????? | | ?#^# #^ #????????????????????????????????? | | ?# # ##????????????????????????????????? | | ?# ^ ## #?????????????????????????????????? | | ?########## ##?????????????????????????????????? | | ??????????#####??????????????????????????????????? | | ?????????????????????????????????????????????????? | | ?????????????????????????????????????????????????? | | | +----------------------------------------------------+ Best States ------------- Heat Dissipation 25 Energy Generation 14 Energy Capacity 250 Matter Stores 300 Matter Capacity 300 Sight Range 18 Terrain Scan Density 10 Evasion (%) 55 Recoil Reduction 1 Item Schematics ----------------- None Robot Schematics ------------------ None Fabricated ------------ Nothing Alien Tech Used ----------------- None Achievements -------------- None Challenges ------------ None Game ------ Seed ArmageddonTeslaProcessor Manual? 0 Play Time 00:14:57 Cumulative 11.0 hours Start 2025.03.29 @ 16:03:05 End 2025.03.29 @ 16:17:09 Sessions 1 Manual Loads 0 Difficulty Rogue Special Mode None Game No. 25 Rogue 25 Adventurer 0 Explorer 0 Win Type - Total 0 Types 0/0/0/0/0/0/0/0/0 Lore% 4 Gallery% 15 Achievement% 15 Wizard Run 0 Options --------- Layout 1 ASCII 0 Keyboard 0 Movement Mouse Keybinds 0 Fullscreen 1 Font 24/Smallcaps Map View 50x35 Zoom Use 0% Tactical HUD 0 Map Filters NONE Filters NONE Steam 1 RUN: b4845130-179a-4044-8607-105c1da52c51